bitfinex/quotes_SOLUSD_20241121
["timestamp","ask_amount","ask_price","bid_price","bid_amount"]
[1732207780813,19.62621575,251.65,251.54,19.62621575]
[1732207781106,23.14704125,251.67,251.56,19.62621575]
[1732207781301,19.62621575,251.67,251.56,19.62621575]
[1732207781610,19.62621575,251.65,251.54,23.60161575]
[1732207781796,23.60011575,251.65,251.54,23.60161575]
[1732207782004,19.62621575,251.63,251.54,19.62621575]
[1732207782200,19.62621575,251.63,251.52,33.54151575]
[1732207782400,19.62621575,251.65,251.56,19.62621575]
[1732207783298,19.62621575,251.65,251.52,13.9153]
[1732207783299,12.2363,251.7,251.63,19.62621575]
[1732207783663,12.2363,251.7,251.64,3.9739]
[1732207784313,32.0983,251.71,251.66,19.62621575]
[1732207784709,13.1777,251.78,251.7,19.62621575]
[1732207785203,19.62621575,251.76,251.66,19.62621575]
[1732207785515,3.9718,251.77,251.68,19.62621575]
[1732207786418,3.9718,251.77,251.66,19.62621575]
[1732207786623,3.9718,251.77,251.71,19.62621575]
[1732207786831,23.59801575,251.77,251.67,19.62621575]
[1732207787007,23.59801575,251.77,251.66,13.9074]
[1732207787008,19.62621575,251.73,251.62,3.9741]
[1732207787340,3.9718,251.77,251.68,19.62621575]
[1732207787810,36.23483983,251.78,251.68,19.62621575]
[1732207788013,40.20663983,251.78,251.68,19.62621575]
[1732207788411,47.7573,252.01,251.77,20.0]
[1732207788718,47.7573,252.01,251.76,19.62621575]
[1732207788719,19.62621575,251.98,251.87,19.62621575]
[1732207788922,19.62621575,251.91,251.72,13.9042]
[1732207789131,19.62621575,251.88,251.76,19.62621575]
[1732207789320,19.62621575,251.88,251.78,19.62621575]
[1732207789515,19.62621575,251.9,251.78,19.62621575]
[1732207789835,19.62621575,251.88,251.78,19.62621575]
[1732207790004,13.8895,251.99,251.8,19.62621575]
[1732207790005,19.62621575,251.9,251.8,19.62621575]
[1732207790208,3.9687,251.97,251.82,19.62621575]
[1732207790411,19.62621575,251.95,251.84,19.62621575]
[1732207790627,3.9687,251.97,251.69,14.4059]
[1732207790628,19.62621575,251.87,251.7,20.0]
[1732207790826,19.62621575,251.87,251.75,19.62621575]
[1732207791231,19.62621575,251.93,251.81,19.62621575]
[1732207791431,19.62621575,251.95,251.83,19.62621575]
[1732207791611,19.62621575,251.93,251.83,19.62621575]
[1732207792021,3.9698,251.9,251.79,19.62621575]
[1732207792344,19.62621575,251.89,251.79,19.62621575]
[1732207792812,3.9698,251.9,251.81,19.62621575]
[1732207793010,23.776884,251.89,251.79,19.62621575]
[1732207793211,43.40309975,251.89,251.79,19.62621575]
[1732207793439,43.40309975,251.89,251.77,19.62621575]
[1732207793637,19.8299,252.15,251.83,0.5]
[1732207793845,43.4472,252.2,251.95,19.62621575]
[1732207793846,19.62621575,252.05,251.95,19.62621575]
[1732207794022,19.62621575,252.06,251.95,19.62621575]
[1732207794219,19.62621575,252.04,251.94,3.969]
[1732207794816,19.62621575,252.04,251.93,19.62621575]
[1732207795014,19.62621575,252.0,251.92,9.9235]
[1732207795334,19.62621575,251.98,251.87,23.59631575]
[1732207795539,19.62621575,251.98,251.87,19.62621575]
[1732207795839,19.62621575,251.96,251.85,19.62621575]
[1732207796012,3.9688,251.96,251.83,19.62621575]
[1732207796213,19.62621575,251.94,251.83,19.62621575]
[1732207797013,23.776884,251.93,251.83,19.62621575]
[1732207797220,19.62621575,251.92,251.81,19.62621575]
[1732207797740,19.62621575,251.92,251.82,20.0]
[1732207797917,23.59501575,251.96,251.86,19.62621575]
[1732207798416,19.62621575,252.07,251.88,19.62621575]
[1732207798417,3.40643684,251.97,251.88,19.62621575]
[1732207798735,3.40643684,251.97,251.87,9.9257]
[1732207798736,19.62621575,251.97,251.87,9.9257]
[1732207799040,19.62621575,251.95,251.84,19.62621575]
[1732207799424,19.62621575,251.95,251.84,23.59681575]
[1732207799624,19.62621575,251.97,251.88,19.62621575]
[1732207799827,19.62621575,251.97,251.86,19.62621575]
[1732207800027,19.62621575,251.93,251.84,9.9269]
[1732207800247,23.59581575,251.91,251.8,19.62621575]
[1732207800430,19.62621575,251.89,251.8,19.62621575]
[1732207800768,23.776884,251.9,251.8,19.62621575]
[1732207801334,23.59581575,251.91,251.8,19.62621575]
[1732207802015,23.59581575,251.91,251.65,13.5218]
[1732207802016,19.62621575,251.84,251.74,19.62621575]
[1732207802215,19.62621575,251.79,251.69,19.62621575]
[1732207802418,19.62621575,251.81,251.71,19.62621575]
[1732207802647,19.62621575,251.79,251.69,19.62621575]
[1732207802815,19.62621575,251.81,251.71,19.62621575]
[1732207803020,23.776884,251.8,251.71,19.62621575]
[1732207803219,19.62621575,251.79,251.69,19.62621575]
[1732207803443,19.62621575,251.77,251.67,19.62621575]
[1732207803718,19.62621575,251.75,251.67,19.62621575]
[1732207804138,3.9723,251.75,251.69,19.62621575]
[1732207804327,67.59966943,251.83,251.73,19.62621575]
[1732207804550,43.8818,251.83,251.78,19.62621575]
[1732207804944,43.8818,251.83,251.8,19.62621575]
[1732207805241,31.1583,251.83,251.8,19.62621575]
[1732207805563,31.1583,251.83,251.68,19.62621575]
[1732207805564,12.6235,251.91,251.82,19.62621575]
[1732207805733,30.1045,251.92,251.88,19.62621575]
[1732207805955,30.1045,251.92,251.88,23.59631575]
[1732207806128,12.6235,251.98,251.9,19.22370408]
[1732207806351,12.6235,251.98,251.88,3.9701]
[1732207806352,12.6235,251.98,251.92,19.62621575]
[1732207806752,9.9176,252.08,251.96,19.62621575]
[1732207806753,19.62621575,252.08,251.96,19.62621575]
[1732207806846,19.62621575,252.1,252.0,19.62621575]
[1732207807587,31.9716,252.11,252.02,19.62621575]
[1732207807724,19.62621575,252.1,252.0,19.62621575]
[1732207808120,31.9716,252.11,252.02,19.62621575]
[1732207808527,31.9716,252.11,252.06,19.62621575]
[1732207808719,23.59201575,252.16,252.06,19.62621575]
[1732207809637,19.62621575,252.14,252.04,19.62621575]
[1732207809826,19.62621575,252.14,252.04,23.59371575]
[1732207810145,19.62621575,252.14,252.06,19.62621575]
[1732207810340,23.59201575,252.16,252.06,19.62621575]
[1732207811138,19.62621575,252.16,252.06,23.59331575]
[1732207811350,0.05318471,252.18,252.15,20.0]
[1732207811546,0.05318471,252.18,252.17,19.62621575]
[1732207812938,0.05318471,252.18,252.17,23.59171575]
[1732207813323,31.7591,252.38,252.17,23.59171575]
[1732207813324,30.4844,252.42,252.19,23.776884]
[1732207813440,30.4844,252.42,252.24,19.62621575]
[1732207813441,19.62621575,252.35,252.24,19.62621575]
[1732207814230,19.62621575,252.37,252.26,19.62621575]
[1732207814574,18.22621575,252.37,252.26,19.62621575]
[1732207814780,30.4844,252.42,252.26,19.62621575]
[1732207814781,19.62621575,252.35,252.26,19.62621575]
[1732207815296,30.4844,252.42,252.32,19.62621575]
[1732207815460,30.4844,252.42,252.3,19.62621575]
[1732207815461,19.62621575,252.4,252.3,19.62621575]
[1732207816574,50.11061575,252.42,252.32,19.62621575]
[1732207816778,50.11061575,252.42,252.32,23.58931575]
[1732207817584,19.62621575,252.4,252.32,19.62621575]
[1732207818069,30.4844,252.42,252.32,19.62621575]
[1732207818070,50.11061575,252.42,252.32,19.62621575]
[1732207818301,19.62621575,252.4,252.32,19.62621575]
[1732207818583,19.62621575,252.35,252.26,19.62621575]
[1732207818909,19.62621575,252.39,252.3,19.62621575]
[1732207819174,3.9618,252.41,252.28,19.62621575]
[1732207819175,19.62621575,252.37,252.28,19.62621575]
[1732207819403,3.9618,252.41,252.24,19.62621575]
[1732207819404,19.62621575,252.34,252.24,19.62621575]
[1732207820454,19.62621575,252.34,252.26,19.62621575]
[1732207820863,3.9628,252.35,252.26,19.62621575]
[1732207821379,23.58851575,252.38,252.28,19.62621575]
[1732207821554,19.62621575,252.38,252.28,19.62621575]
[1732207822585,3.9624,252.37,252.28,19.62621575]
[1732207822887,19.62621575,252.36,252.28,19.62621575]
[1732207823259,23.58821575,252.4,252.3,19.62621575]
[1732207824477,19.62621575,252.35,252.25,19.62621575]
[1732207824986,19.62621575,252.33,252.23,23.59071575]
[1732207825292,19.62621575,252.36,252.26,19.62621575]
[1732207825762,19.62621575,252.34,252.26,19.62621575]
[1732207826228,19.62621575,252.34,252.24,19.62621575]
[1732207827576,3.9623,252.38,252.28,19.62621575]
[1732207827774,19.62621575,252.38,252.28,19.62621575]
[1732207828082,23.58851575,252.38,252.28,19.62621575]
[1732207828902,19.62621575,252.36,252.26,23.59031575]
[1732207829579,19.62621575,252.36,252.28,19.62621575]
[1732207829893,19.62621575,252.34,252.26,19.62621575]
[1732207830271,19.62621575,252.31,252.22,19.62621575]
[1732207830789,19.62621575,252.35,252.26,19.62621575]
[1732207830991,23.58901575,252.35,252.26,19.62621575]
[1732207831301,19.62621575,252.35,252.26,23.59021575]
[1732207831466,3.9624,252.37,252.26,23.59021575]
[1732207831467,23.58861575,252.37,252.26,23.59021575]
[1732207831672,23.58861575,252.37,252.28,19.62621575]
[1732207832095,19.62621575,252.39,252.3,19.62621575]
[1732207832285,30.4844,252.42,252.33,19.62621575]
[1732207832595,19.62621575,252.39,252.31,19.62621575]
[1732207832810,19.62621575,252.4,252.31,19.62621575]
[1732207833004,19.62621575,252.4,252.32,3.9632]
[1732207833323,34.4461,252.42,252.32,3.9632]
[1732207833324,19.62621575,252.42,252.33,19.62621575]
[1732207833642,19.62621575,252.4,252.32,13.8712]
[1732207834397,19.62621575,252.45,252.35,19.62621575]
[1732207835096,19.62621575,252.45,252.36,13.8689]
[1732207836985,23.58741575,252.45,252.35,19.62621575]
[1732207837184,19.62621575,252.47,252.37,19.62621575]
[1732207837698,19.62621575,252.45,252.36,13.8689]
[1732207838606,19.62621575,252.43,252.36,9.9064]
[1732207838896,19.62621575,252.43,252.35,19.62621575]
[1732207839081,19.62621575,252.43,252.33,19.62621575]
[1732207839284,3.9616,252.42,252.33,23.58911575]
[1732207840599,3.9616,252.42,252.25,35.652252]
[1732207840600,19.62621575,252.37,252.29,19.62621575]
[1732207841589,3.9625,252.36,252.29,19.62621575]
[1732207842006,19.62621575,252.35,252.27,19.62621575]
[1732207843017,50.29381575,252.35,252.25,9.9107]
[1732207843303,19.62621575,252.33,252.24,19.62621575]
[1732207843518,50.29381575,252.35,252.26,19.62621575]
[1732207843701,3.9629,252.34,252.26,19.62621575]
[1732207844203,30.6676,252.35,252.28,19.62621575]
[1732207844407,30.6676,252.35,252.31,19.62621575]
[1732207844790,30.6676,252.35,252.24,13.8755]
[1732207844791,30.6676,252.35,252.33,19.62621575]
[1732207845213,3.962,252.4,252.33,19.62621575]
[1732207845785,16.3155,252.42,252.33,23.58921575]
[1732207846010,12.3538,252.42,252.33,33.49681575]
[1732207846206,30.5752,252.43,252.37,19.62621575]
[1732207846421,34.5367,252.43,252.37,19.62621575]
[1732207847117,3.9612,252.45,252.37,19.62621575]
[1732207847711,3.9612,252.45,252.35,19.62621575]
[1732207848418,19.62621575,252.44,252.33,19.62621575]
[1732207848611,3.9612,252.45,252.35,19.62621575]
[1732207848802,23.58741575,252.45,252.35,19.62621575]
[1732207849508,3.9612,252.45,252.37,19.62621575]
[1732207850411,3.9612,252.45,252.39,19.62621575]
[1732207850830,3.9612,252.45,252.37,19.62621575]
[1732207852251,3.9604,252.5,252.42,19.62621575]
[1732207852418,3.9604,252.5,252.4,19.62621575]
[1732207852618,19.62621575,252.49,252.4,19.62621575]
[1732207853226,3.9607,252.48,252.4,19.62621575]
[1732207853940,3.9607,252.48,252.4,23.58811575]
[1732207854141,3.9607,252.48,252.4,19.62621575]
[1732207854453,3.9607,252.48,252.42,19.62621575]
[1732207854752,0.54122414,252.56,252.5,0.5]
[1732207854925,3.9563,252.76,252.56,0.5]
[1732207855125,3.9549,252.85,252.67,19.62621575]
[1732207855324,3.9549,252.85,252.66,0.5]
[1732207855325,19.62621575,252.83,252.75,19.62621575]
[1732207855849,19.62621575,252.83,252.73,19.62621575]
[1732207856349,34.24111361,252.84,252.75,19.62621575]
[1732207856519,14.61489786,252.84,252.77,19.62621575]
[1732207856718,10.42565229,252.84,252.77,19.62621575]
[1732207857121,19.62621575,252.83,252.73,19.62621575]
[1732207857554,19.62621575,252.83,252.74,3.9566]
[1732207857728,19.62621575,252.83,252.73,19.62621575]
[1732207857926,10.42565229,252.84,252.75,19.62621575]
[1732207858122,19.62621575,252.83,252.73,19.62621575]
[1732207859345,19.62621575,252.74,252.72,13.8492]
[1732207859553,19.62621575,252.74,252.65,25.700573]
[1732207859757,19.62621575,252.68,252.65,9.895]
[1732207860474,19.62621575,252.66,252.6,4.4588]
[1732207860763,19.62621575,252.66,252.61,15.807611]
[1732207860965,19.62621575,252.66,252.6,3.9588]
[1732207861345,19.62621575,252.66,252.62,13.8547]
[1732207861845,19.62621575,252.71,252.62,33.48091575]
[1732207862163,19.62621575,252.73,252.64,20.12621575]
[1732207862371,19.62621575,252.73,252.64,19.62621575]
[1732207862669,19.62621575,252.75,252.66,19.62621575]
[1732207863436,19.62621575,252.73,252.67,13.852]
[1732207863642,19.62621575,252.75,252.67,13.852]
[1732207864363,19.62621575,252.78,252.68,19.62621575]
[1732207864574,19.62621575,252.76,252.68,19.62621575]
[1732207864789,19.62621575,252.8,252.69,0.5]
[1732207865070,10.42565229,252.84,252.69,0.5]
[1732207865071,10.30025229,252.84,252.79,20.12621575]
[1732207865275,10.30025229,252.84,252.83,19.62621575]
[1732207865560,10.30025229,252.84,252.76,19.62621575]
[1732207866061,10.30025229,252.84,252.82,19.62621575]
[1732207867339,10.30025229,252.84,252.83,3.9552]
[1732207867550,10.17485229,252.84,252.83,3.9552]
[1732207867748,10.17485229,252.84,252.83,24.08141575]
[1732207867956,150.15920702,252.96,252.88,0.5]
[1732207868165,150.15920702,252.96,252.93,19.62621575]
[1732207868463,150.15920702,252.96,252.88,0.5]
[1732207868464,150.15920702,252.96,252.95,19.62621575]
[1732207868884,150.15920702,252.96,252.89,19.62621575]
[1732207869037,154.11250702,252.96,252.87,19.62621575]
[1732207869234,150.15920702,252.96,252.91,19.62621575]
[1732207869872,150.15920702,252.96,252.93,19.62621575]
[1732207870157,150.15920702,252.96,252.91,19.62621575]
[1732207870359,150.15920702,252.96,252.89,19.62621575]
[1732207870577,150.15920702,252.96,252.86,9.8868]
[1732207870578,3.9533,252.95,252.87,19.62621575]
[1732207870746,19.62621575,252.95,252.86,9.8868]
[1732207870946,150.15920702,252.96,252.89,19.62621575]
[1732207871148,150.15920702,252.96,252.91,19.62621575]
[1732207871462,150.15920702,252.96,252.89,23.58031575]
[1732207871967,150.15920702,252.96,252.94,19.62621575]
[1732207873449,150.15920702,252.96,252.92,19.62621575]
[1732207874073,150.15920702,252.96,252.9,33.46551575]
[1732207874366,150.15920702,252.96,252.94,19.62621575]
[1732207874537,44.48956475,252.96,252.95,19.62621575]
[1732207874959,44.48956475,252.96,252.94,19.62621575]
[1732207875677,44.48956475,252.96,252.95,23.57951575]
[1732207876551,32.05273611,252.96,252.95,23.57951575]
[1732207877556,11.42565229,253.0,252.95,33.46281575]
[1732207877753,11.42565229,253.0,252.99,19.62621575]
[1732207877948,10.42565229,253.16,252.99,19.62621575]
[1732207878148,10.42565229,253.16,253.09,19.62621575]
[1732207878372,10.42565229,253.16,253.07,19.62621575]
[1732207878581,23.57651575,253.15,253.05,19.62621575]
[1732207878761,19.62621575,253.13,253.03,19.62621575]
[1732207879164,19.62621575,253.05,252.95,19.62621575]
[1732207879468,43.2578,253.04,252.9,19.62621575]
[1732207879659,19.62621575,253.0,252.9,19.62621575]
[1732207879857,19.62621575,252.98,252.86,19.62621575]
[1732207880154,19.62621575,252.94,252.84,19.62621575]
[1732207880888,19.62621575,252.89,252.8,13.8448]
[1732207881058,13.8323,253.03,252.81,19.62621575]
[1732207881257,19.62621575,252.93,252.83,19.62621575]
[1732207881666,19.62621575,252.95,252.85,19.62621575]
[1732207881856,19.62621575,252.93,252.84,13.8426]
[1732207882058,3.9521,253.03,252.84,13.8426]
[1732207882273,19.62621575,252.89,252.78,9.8898]
[1732207882492,19.62621575,252.83,252.72,19.62621575]
[1732207882681,19.62621575,252.83,252.72,29.51841575]
[1732207882887,19.62621575,252.98,252.72,29.51841575]
[1732207882888,19.62621575,252.81,252.72,9.8922]
[1732207883486,13.2934,252.86,252.77,19.62621575]
[1732207883678,13.2934,252.86,252.78,3.956]
[1732207883992,19.62621575,252.87,252.78,13.846]
[1732207884999,31.68494183,252.87,252.78,13.846]
[1732207885910,31.68494183,252.89,252.79,31.68494183]
[1732207886507,64.25084183,252.92,252.81,31.68494183]
[1732207886888,31.68494183,252.94,252.83,31.68494183]
[1732207887086,31.68494183,252.94,252.85,31.68494183]
[1732207887273,31.68494183,252.94,252.83,31.68494183]
[1732207887785,31.68494183,252.94,252.84,13.8426]
[1732207887983,13.1198,252.95,252.86,31.68494183]
[1732207888885,31.68494183,252.94,252.84,41.57254183]
[1732207889084,31.68494183,252.92,252.84,9.8876]
[1732207889283,44.80474183,252.95,252.85,31.68494183]
[1732207889576,44.80474183,252.95,252.84,45.52754183]
[1732207889577,31.68494183,252.93,252.84,45.52754183]
[1732207889790,44.80474183,252.95,252.84,45.52754183]
[1732207889995,13.1198,252.95,252.88,31.68494183]
[1732207890198,31.68494183,252.99,252.9,31.68494183]
[1732207890915,33.0183,253.01,252.84,13.8426]
[1732207890916,64.70324183,253.01,252.92,31.68494183]
[1732207891290,68.65564183,253.01,252.92,31.68494183]
[1732207891808,68.65564183,253.01,252.91,3.9538]
[1732207892008,31.68494183,252.95,252.84,31.68494183]
[1732207893212,3.9535,252.94,252.85,3.9549]
[1732207893396,31.68494183,252.91,252.85,3.65535853]
[1732207893605,31.68494183,252.86,252.78,9.8898]
[1732207893806,30.0409,252.83,252.7,3.9572]
[1732207894113,30.0409,252.83,252.75,31.68494183]
[1732207894826,3.9555,252.81,252.71,31.68494183]
[1732207894991,30.0409,252.83,252.75,31.68494183]
[1732207895189,30.0409,252.83,252.62,1.5933549]
[1732207895190,30.0409,252.83,252.77,31.68494183]
[1732207895598,30.0409,252.83,252.75,31.68494183]
[1732207895797,33.9962,252.83,252.75,31.68494183]
[1732207895993,30.0409,252.83,252.75,31.68494183]
[1732207896196,30.0409,252.83,252.61,53.4418]
[1732207896197,31.68494183,252.77,252.67,31.68494183]
[1732207896491,31.68494183,252.77,252.61,33.6485]
[1732207896492,31.68494183,252.73,252.63,31.68494183]
[1732207896892,3.9569,252.72,252.62,3.9583]
[1732207897098,3.9569,252.72,252.59,31.68494183]
[1732207897099,31.68494183,252.69,252.59,31.68494183]
[1732207897306,35.64134183,252.75,252.65,31.68494183]
[1732207897525,31.68494183,252.77,252.67,31.68494183]
[1732207898022,3.9553,252.82,252.69,31.68494183]
[1732207898210,31.68494183,252.8,252.71,31.68494183]
[1732207898411,31.68494183,252.82,252.71,31.68494183]
[1732207898612,31.68494183,252.84,252.73,31.68494183]
[1732207898911,33.9962,252.83,252.75,31.68494183]
[1732207899110,31.68494183,252.82,252.74,3.9565]
[1732207899428,31.68494183,252.8,252.68,31.68494183]
[1732207899715,31.68494183,252.8,252.7,31.68494183]
[1732207900226,30.0409,252.83,252.74,31.68494183]
[1732207900398,30.0409,252.83,252.76,31.68494183]
[1732207901003,30.0409,252.83,252.76,35.64104183]
[1732207901223,35.64024183,252.82,252.72,31.68494183]
[1732207901523,31.68494183,252.79,252.69,31.68494183]
[1732207902202,31.68494183,252.81,252.71,31.68494183]
[1732207902417,3.9556,252.8,252.71,31.68494183]
[1732207902616,3.9556,252.8,252.71,35.64194183]
[1732207903016,30.0409,252.83,252.75,31.68494183]
[1732207904097,3.9553,252.82,252.75,31.68494183]
[1732207904501,30.0409,252.83,252.77,31.68494183]
[1732207905117,30.0409,252.83,252.79,31.68494183]
[1732207905534,30.0409,252.83,252.77,31.68494183]
[1732207906328,30.0409,252.83,252.75,45.53234183]
[1732207906519,30.0409,252.83,252.75,13.8474]
[1732207906719,19.50365896,252.82,252.75,9.8911]
[1732207907229,19.50365896,252.8,252.69,29.39685896]
[1732207907429,33.9961,252.83,252.69,29.39685896]
[1732207907430,19.50365896,252.78,252.69,29.39685896]
[1732207908220,23.45905896,252.82,252.73,19.50365896]
[1732207908462,23.45905896,252.82,252.71,19.50365896]
[1732207908638,30.0409,252.83,252.73,19.50365896]
[1732207909211,19.50365896,252.82,252.73,19.50365896]
[1732207910127,30.0409,252.83,252.73,19.50365896]
[1732207910349,19.50365896,252.82,252.74,3.9566]
[1732207911424,19.50365896,252.8,252.7,3.9572]
[1732207911738,19.50365896,252.78,252.7,3.9572]
[1732207911933,19.50365896,252.78,252.7,13.8503]
[1732207912125,19.50365896,252.8,252.7,13.8503]
[1732207912725,23.45935896,252.8,252.7,13.8503]
[1732207913316,19.50365896,252.78,252.7,13.8503]
[1732207913753,19.50365896,252.74,252.65,9.8949]
[1732207913948,19.50365896,252.74,252.65,29.39855896]
[1732207914451,19.50365896,252.76,252.65,29.39855896]
[1732207914741,19.50365896,252.76,252.67,19.50365896]
[1732207914941,19.50365896,252.76,252.68,13.8514]
[1732207915320,19.50365896,252.81,252.71,19.50365896]
[1732207915819,19.50365896,252.79,252.69,19.50365896]
[1732207916720,49.54455896,252.83,252.73,19.50365896]
[1732207916920,49.54455896,252.83,252.74,13.8481]
[1732207917829,19.50365896,252.85,252.75,19.50365896]
[1732207918140,19.50365896,252.85,252.74,13.8481]
[1732207918141,19.50365896,252.88,252.77,19.50365896]
[1732207918316,19.50365896,252.9,252.81,19.50365896]
[1732207919031,19.50365896,252.9,252.82,13.8437]
[1732207921225,31.0596,252.91,252.76,13.8466]
[1732207921425,19.50365896,252.84,252.76,13.8466]
[1732207922028,19.50365896,252.86,252.77,19.50365896]
[1732207922539,19.50365896,252.86,252.78,13.846]
[1732207922923,31.0596,252.91,252.73,19.50365896]
[1732207922924,19.50365896,252.84,252.73,19.50365896]
[1732207923129,19.50365896,252.78,252.72,9.8919]
[1732207923336,4.4541,252.9,252.72,29.39555896]
[1732207923337,19.50365896,252.8,252.72,29.39555896]
[1732207923539,19.50365896,252.82,252.72,29.39555896]
[1732207923736,3.9541,252.9,252.74,19.50365896]
[1732207923737,19.50365896,252.84,252.74,19.50365896]
[1732207924051,19.50365896,252.84,252.76,19.50365896]
[1732207924345,19.50365896,252.8,252.72,33.35245896]
[1732207924717,3.9555,252.81,252.72,33.35245896]
[1732207924919,19.50365896,252.8,252.72,33.35245896]
[1732207925139,19.50365896,252.8,252.72,13.8488]
[1732207925737,19.50365896,252.76,252.71,10.0]
[1732207925939,19.50365896,252.74,252.72,5.86880048]
[1732207926150,1.50908658,252.74,252.71,8.73759743]
[1732207926323,3.9569,252.72,252.71,8.73759743]
[1732207926745,1.50908658,252.74,252.71,8.73759743]
[1732207926923,19.50365896,252.72,252.71,8.73759743]
[1732207927464,21.01274554,252.74,252.71,8.73759743]
[1732207927762,19.50365896,252.76,252.71,8.73759743]
[1732207928059,11.24745158,252.77,252.71,8.73759743]
[1732207928060,19.50365896,252.74,252.71,8.73759743]
[1732207928274,19.50365896,252.72,252.71,8.73759743]
[1732207928446,23.46055896,252.72,252.71,8.73759743]
[1732207928949,19.50365896,252.72,252.71,8.73759743]
[1732207929448,11.24745158,252.77,252.71,8.73759743]
[1732207929638,30.75111054,252.77,252.71,8.73759743]
[1732207930343,3.9569,252.72,252.71,8.73759743]
[1732207930550,19.50365896,252.73,252.71,8.73759743]
[1732207931060,19.50365896,252.75,252.71,8.73759743]
[1732207931261,19.50365896,252.81,252.73,19.50365896]
[1732207932139,31.6479,252.84,252.73,19.50365896]
[1732207932345,19.50365896,252.83,252.73,19.50365896]
[1732207932554,19.50365896,252.83,252.74,13.8481]
[1732207933256,19.50365896,252.81,252.74,9.8915]
[1732207933473,19.50365896,252.79,252.71,12.69459743]
[1732207933846,19.50365896,252.77,252.71,8.73759743]
[1732207934058,19.50365896,252.75,252.71,8.73759743]
[1732207934360,31.6479,252.84,252.73,19.50365896]
[1732207934571,19.50365896,252.83,252.74,3.9566]
[1732207934781,19.50365896,252.79,252.71,8.73759743]
[1732207934988,19.50365896,252.77,252.71,8.73759743]
[1732207935279,19.50365896,252.79,252.71,12.69459743]
[1732207935778,19.50365896,252.81,252.71,22.58729743]
[1732207935986,19.50365896,252.79,252.71,18.63029743]
[1732207936568,19.50365896,252.79,252.71,22.58739743]
[1732207936893,23.45955896,252.79,252.71,8.73759743]
[1732207937378,19.50365896,252.79,252.71,22.58729743]
[1732207937584,19.50365896,252.79,252.71,18.63029743]
[1732207937757,23.45955896,252.79,252.71,18.63029743]
[1732207937963,23.45955896,252.79,252.71,22.58739743]
[1732207938462,23.45955896,252.79,252.71,18.63029743]
[1732207938882,23.45955896,252.79,252.71,22.58739743]
[1732207939061,16.5347,252.86,252.76,19.50365896]
[1732207939476,23.45795896,252.89,252.79,19.50365896]
[1732207939682,19.50365896,252.87,252.77,19.50365896]
[1732207940183,23.45795896,252.89,252.79,19.50365896]
[1732207940985,23.45795896,252.89,252.8,3.9556]
[1732207941384,19.50365896,252.89,252.79,33.34885896]
[1732207941572,31.80715896,252.93,252.83,19.50365896]
[1732207941880,31.80715896,252.93,252.79,13.8452]
[1732207941881,12.3035,252.93,252.85,19.50365896]
[1732207942178,30.0765,252.99,252.89,19.50365896]
[1732207942576,49.58015896,252.99,252.89,19.50365896]
[1732207943171,53.53295896,252.99,252.9,3.9541]
[1732207943591,34.0293,252.99,252.9,3.9541]
[1732207943792,30.0765,252.99,252.9,13.8394]
[1732207944293,19.50365896,252.98,252.9,13.8394]
[1732207944499,32.25405896,253.0,252.91,19.50365896]
[1732207944787,19.50365896,253.04,252.93,19.50365896]
[1732207944993,19.50365896,253.04,252.95,19.50365896]
[1732207945196,19.50365896,253.08,252.98,19.50365896]
[1732207945497,19.50365896,253.13,253.05,19.50365896]
[1732207945671,23.45425896,253.13,253.05,19.50365896]
[1732207946209,19.50365896,253.13,253.03,19.50365896]
[1732207946993,4.0782638,253.15,253.08,19.50365896]
[1732207947191,32.74745896,253.22,253.12,19.50365896]
[1732207947398,0.25413,253.23,253.14,19.50365896]
[1732207947598,14.55457259,253.16,253.14,19.50365896]
[1732207948068,10.42565229,253.16,253.14,19.50365896]
[1732207948271,10.30025229,253.16,253.14,19.50365896]
[1732207949071,0.25413,253.23,253.14,19.50365896]
[1732207949072,0.25413,253.23,253.15,21.0]
[1732207949370,19.50365896,253.32,253.23,13.8213]
[1732207949811,19.50365896,253.3,253.2,19.50365896]
[1732207950106,36.00705896,253.34,253.24,19.50365896]
[1732207950311,19.50365896,253.38,253.28,19.50365896]
[1732207950495,19.50365896,253.34,253.24,19.50365896]
[1732207951206,19.50365896,253.27,253.16,13.0287]
[1732207951391,19.50365896,253.25,253.17,13.8246]
[1732207951580,19.50365896,253.27,253.18,19.50365896]
[1732207951779,10.42565229,253.31,253.23,19.50365896]
[1732207952003,10.42565229,253.31,253.25,19.50365896]
[1732207952189,10.42565229,253.31,253.29,19.50365896]
[1732207952592,10.42565229,253.31,253.27,19.50365896]
[1732207953105,10.42565229,253.31,253.21,0.5]
[1732207953106,29.92931125,253.31,253.21,19.50365896]
[1732207953315,29.92931125,253.31,253.22,13.8219]
[1732207953611,10.42565229,253.31,253.23,19.50365896]
[1732207953781,10.42565229,253.31,253.25,19.50365896]
[1732207953992,10.42565229,253.31,253.23,19.50365896]